Workbook

Sheet Content
B2: Annex 1
B14: Entry and exit network charge tariffs for the natural gas transmission system in Slovenia
B15: The simplified tariff model represents the matrix model for determination of network charge tariffs and is prepared on the basis of Article 30(2)(b) of the Commission Regulation (EU) 2017/460 of 16 March 2017 establishing a Network Code on Harmonised Transmission Tariff Structures for Gas
B19: Content
B20: Setting the entry and exit network charge tariffs with the use of a matrix methodology
B24: Date of last modification:
B25: 2019-03-28

Sheet Notice
B3: =Content!B20 -> Setting the entry and exit network charge tariffs with the use of a matrix methodology
B5: A user can use a simplified calculation of entry and exit natwork charge tariffs for an individual entry or exit point on the basis of the entry of an average daily booking in an individual entry or exit point (green coloured fields)
B7: When looking for the appropriate correction factor for entry and exit tariffs to achieve the expected target revenue "Excel Solver" is used, which must be enabled beforehand by the user prior (File → Options →Add-ins → Excel add-ins → Solver)
B9: User Account Process:
B11: Input of average daily booked capacity in an individual entry or exit point , which must not exceed the technical capacity of an individual point of the transmission system.
B25: Table for the input of average daily booked capacityin an individual entry/exit point
B27: Activation of Excel Solver and setting the target eligible revenue of the TSO (eligible revenue of the TSO for 2019 amount to EUR 42.001.567). In case if only the average daily booking is changed in a single point, only the command Solver is executed, which calculates the appropriate correction factor - factor of entry/exit tariffs to achieve the expected the target revenue and consequently the calculation of the appropriate entry and exit tariffs.
B54: Excel Solver window

Sheet Matrix metholodogy
H1: =Content!B25 -> 2019-03-28
B2: =Content!B14 -> Entry and exit network charge tariffs for the natural gas transmission system in Slovenia
B4: =Content!B20 -> Setting the entry and exit network charge tariffs with the use of a matrix methodology
B9: ="Natural gas transmission system in Slovenia - Entry/Exit in tariffs for the regulatory year 2020" -> Natural gas transmission system in Slovenia - Entry/Exit in tariffs for the regulatory year 2020
B12: Table 1. Peak load at the occurance of the transmisssion system peak load
B14: Consumption of natural gas | C14: Flow [kWh/day]
B15: Consumption in point C (Section B-C) | C15: 26836766
B16: Consumption in point E (Section D-E) | C16: 53705604
B17: Consumption in point F (Section D-F) | C17: 25886804
B18: Total | C18: =SUM(C15:C17) -> 106429174
B20: Supply of natural gas | C20: 79592408
B21: Supply in point A (Section A-B) | C21: 106429174
B22: Total | C22: =C21 -> 106429174
B24: Opomba:
B25: Flows at peak load on 26/2/2018
F26: Shema prenosnega sistema porazdeljena po odsekih (na dan 1.1.2019)
B28: Determination of entry/exit tariffs of the transmission system (Entry-Exit tarif)
B30: Entry-Exit tariffs - without taking into account the correction factor of the entry/exit tariffs
B33: Entry/exit tariffs [EUR/(kWh/day)] | F33: 0.9 | G33: Techical capacity of entry/exit points
B34: Entry/exit tariffs | C34: Entry tariffs | D34: =CALC!D3+CALC!D6 -> 0.08182652614 | E34: =C38*$F$33 -> 0.01992041865 | F34: =C39*$F$33 -> 0.4562084059 | G34: Entry capacity [kWh/day] | H34: Exit capacity [kWh/day]
C35: Exit tariffs | D35: Ceršak | E35: Rogatec | F35: Šempeter pri Gorici
B36: Slovenia | C36: =CALC!C9 -> 0.364521787 | D36: =D$34+$C36 -> 0.4463483132 | E36: =$E$34+C36 -> 0.3844422057 | F36: =F$34+$C36 -> 0.8207301929 | G36: 0 | H36: 73643000
B37: Ceršak | C37: =D34*$F$33 -> 0.07364387353 | D37: 0 | E37: =CALC!$F$11+C37 -> 0.07364387353 | F37: =F$34+$C37 -> 0.5298522794 | G37: 139155000 | H37: 0
B38: Rogatec | C38: =CALC!C8 -> 0.0221337985 | D38: =D$34+$C38 -> 0.1039603246 | E38: 0 | F38: =F$34+$C38 -> 0.4783422044 | G38: 7731000 | H38: 68289000
B39: Šempeter pri Gorici | C39: =CALC!C10 -> 0.5068982287 | D39: =D$34+$C39 -> 0.5887247549 | E39: =CALC!$F$11+C39 -> 0.5068982287 | F39: 0 | G39: 28316000 | H39: 25742000
B43: Entry/Exit points | C43: Average booking of transmission capacity [kWh/day] | E43: Revenues from booking of transmission capacity [€]
C44: Entry capacity [kWh/day] | D44: Exit capacity [kWh/day] | E44: Entry capacity [€] | F44: Exit capacity [€]
B46: Slovenia | C46: 0 | D46: 53212366 | E46: =$C$46*C36*F33 -> 0 | F46: =$D$46*C36 -> 19397066.75
B47: Ceršak | C47: 44336352 | D47: 0 | E47: =$C$47*D34 -> 3627889.666 | F47: =$D$47*C37 -> 0
B48: Rogatec | C48: 1004773 | D48: 13427254 | E48: =$C$48*E34 -> 20015.49881 | F48: =$D$48*C38 -> 297196.1345
B49: Šempeter pri Gorici | C49: 1797658 | D49: 692165 | E49: =$C$49*F34 -> 820106.6905 | F49: =$D$49*C39 -> 350857.2125
B50: Skupaj | C50: =SUM(C46:C49) -> 47138783 | D50: =SUM(D46:D49) -> 67331785 | E50: 4468011.855 | F50: 20045120.09
E51: Total revenue (uncorrected) | F51: =E50+F50 -> 24513131.95
B52: Note:
B53: ="Indeterminable entry/exit tariffs are determined as 90% value of determinable tariffs. " -> Indeterminable entry/exit tariffs are determined as 90% value of determinable tariffs.
B55: Entry-Exit tariffs - with taking into account the correction factor of the entry/exit tariffs
B58: Entry-Exit tariffs [EUR/(kWh/day)] | F58: 0.9
B59: Entry/Exit points | C59: Entry tariffs | D59: =D34*D79 -> 0.1402041293 | E59: =C63*$F$58 -> 0.03413226839 | F59: =C64*$F$58 -> 0.7816817518
C60: Exit tariffs | D60: Ceršak | E60: Rogatec | F60: Šempeter pri Gorici
B61: Slovenia | C61: =C36*$D$79 -> 0.6245830314 | D61: =D$59+$C61 -> 0.7647871606 | E61: =E$59+$C61 -> 0.6587152998 | F61: =F$59+$C61 -> 1.406264783
B62: Ceršak | C62: =D59*$F$58 -> 0.1261837163 | D62: 0 | E62: =C62+E59 -> 0.1603159847 | F62: =C62+F59 -> 0.9078654681
B63: Rogatec | C63: =C38*$D$79 -> 0.03792474265 | D63: =D$59+$C63 -> 0.1781288719 | E63: 0 | F63: =$C$63+F59 -> 0.8196064945
B64: Šempeter pri Gorici | C64: =C39*$D$79 -> 0.8685352798 | D64: =E$59+$C64 -> 0.9026675482 | E64: =C64+E59 -> 0.9026675482 | F64: 0
B67: Entry/Exit points | C67: Revenues from transmission capacity booking [€]
C68: Entry capacity [€] | D68: Exit capacity [€]
B70: Slovenia | C70: =$C$46*C61 -> 0 | D70: =$D$46*C61 -> 33235540.86
B71: Ceršak | C71: =$C$47*D59 -> 6216139.626 | D71: =$D$47*C62 -> 0
B72: Rogatec | C72: =$C$48*E59 -> 34295.1817 | D72: =$D$48*C63 -> 509225.1525
B73: Šempeter pri Gorici | C73: =$C$49*F59 -> 1405196.455 | D73: =$D$49*C64 -> 601169.7219
B74: Skupaj | C74: =SUM(C70:C73) -> 7655631.263 | D74: =SUM(D70:D73) -> 34345935.74
C75: Expected target revenue [€] | D75: =C74+D74 -> 42001567
D78: Correction factor of entry/exit points to achieve target revenue
C79: Correction factor of entry/exit tariffs Kf(EE) | D79: 1.713431278
B81: Entry/Exit tariffs - Tariffs table
B83: tbl_Entry-Exit
B84: Entry/Exit tariffs [EUR/(kWh/day)] | C84: Ceršak | D84: Rogatec | E84: Šempeter pri Gorici | F84: Slovenija
B85: Entry tariff | C85: =ROUND(D59,5) -> 0.1402 | D85: =ROUND(E59,5) -> 0.03413 | E85: =ROUND(F59,5) -> 0.78168 | F85: =ROUND(AVERAGE(C85:E85),5) -> 0.31867
B86: Exit tariff | C86: =ROUND(C62,5) -> 0.12618 | D86: =ROUND(C63,5) -> 0.03792 | E86: =ROUND(C64,5) -> 0.86854 | F86: =ROUND(C61,5) -> 0.62458

Sheet CALC (hidden)
D1: Strošek enote ob vršni obremenitvi [EUR/(kWh/dan)] | E1: Pričakovan prihodek [EUR]
D2: A do B | E2: A do B
B3: Odsek dostopa do prenosnega sistema | C3: Ceršak | D3: 0.08182652614 | E3: 8708729.589
B4: Skupaj | E4: 8708729.589
C5: Sistemska vstopna točka | D5: B | E5: B
C6: Sistemska vstopna tarifa (Entry tariffs) | D6: 0
B7: Sistemska izstopna točka | D7: Vstopna + Izstopna
B8: Rogatec | C8: 0.0221337985 | D8: 0.0221337985 | E8: 593999.5711
B9: Slovenija | C9: 0.364521787 | D9: 0.364521787 | E9: 19576862.74
B10: Šempeter pri Gorici | C10: 0.5068982287 | D10: 0.5068982287 | E10: 13121975.1
B11: Skupaj | E11: 33292837.41
B12: Skupaj | E12: 42001567
